bitfinex-derivatives/quotes_SOLF0:USTF0_20260213
["timestamp","ask_amount","ask_price","bid_price","bid_amount"]
[1770960309447,3.95795764,78.369,78.327,4.10409645]
[1770960309748,3.57653655,78.37,78.331,4.10409645]
[1770960309749,3.95795764,78.367,78.331,4.10409645]
[1770960309953,3.95795764,78.367,78.33,3.57653655]
[1770960309954,3.95795764,78.365,78.33,3.57653655]
[1770960311243,3.95795764,78.365,78.319,4.10409645]
[1770960311443,3.95795764,78.359,78.319,4.10409645]
[1770960313153,3.95795764,78.359,78.32,3.57653655]
[1770960314654,3.95795764,78.357,78.32,3.57653655]
[1770960314856,3.95795764,78.357,78.321,11.5008]
[1770960316052,3.95795764,78.357,78.322,4.10409645]
[1770960316451,11.4942,78.367,78.33,3.57653655]
[1770960316656,9.41926466,78.366,78.33,3.57653655]
[1770960316959,9.41926466,78.365,78.33,3.57653655]
[1770960317256,9.41926466,78.364,78.33,3.57653655]
[1770960317450,3.95795764,78.364,78.33,3.57653655]
[1770960318659,3.95795764,78.359,78.322,4.10409645]
[1770960318858,3.95795764,78.359,78.321,4.10409645]
[1770960319059,3.95795764,78.359,78.32,3.57653655]
[1770960319060,3.57653655,78.37,78.331,4.10409645]
[1770960319656,3.57653655,78.38,78.341,4.10409645]
[1770960319852,9.42041478,78.379,78.341,4.10409645]
[1770960320053,9.42041478,78.378,78.341,4.10409645]
[1770960320254,9.42041478,78.377,78.341,4.10409645]
[1770960320557,9.42041478,78.379,78.341,4.10409645]
[1770960320756,9.42041478,78.378,78.341,4.10409645]
[1770960320956,9.42041478,78.377,78.341,4.10409645]
[1770960321167,9.42041478,78.379,78.341,4.10409645]
[1770960321464,9.42041478,78.378,78.341,4.10409645]
[1770960321759,9.42041478,78.377,78.341,4.10409645]
[1770960321959,3.57653655,78.38,78.341,4.10409645]
[1770960322159,13.37837242,78.379,78.341,4.10409645]
[1770960322362,9.42041478,78.378,78.341,4.10409645]
[1770960322558,9.42041478,78.377,78.341,4.10409645]
[1770960322758,9.42041478,78.378,78.341,4.10409645]
[1770960322958,9.42041478,78.377,78.341,4.10409645]
[1770960323160,9.42041478,78.378,78.341,4.10409645]
[1770960323459,9.42041478,78.377,78.341,4.10409645]
[1770960323757,9.42041478,78.378,78.341,4.10409645]
[1770960323959,9.42041478,78.377,78.341,4.10409645]
[1770960324261,9.42041478,78.378,78.341,4.10409645]
[1770960324454,9.42041478,78.377,78.346,11.4972]
[1770960324649,9.42041478,78.378,78.346,11.4972]
[1770960324850,9.42041478,78.377,78.347,4.10409645]
[1770960325160,3.95795764,78.379,78.347,4.10409645]
[1770960325351,9.42041478,78.389,78.347,4.10409645]
[1770960325554,13.37837242,78.388,78.348,11.4968]
[1770960325765,13.37837242,78.387,78.348,11.4968]
[1770960325955,3.95795764,78.387,78.348,11.4968]
[1770960326556,3.57653655,78.38,78.348,11.4968]
[1770960326860,3.57545049,78.38,78.348,11.4968]
[1770960327556,3.95795764,78.386,78.348,15.60089645]
[1770960327763,3.95795764,78.386,78.35,15.07205049]
[1770960330656,3.95795764,78.386,78.35,11.4966]
[1770960331557,3.95795764,78.386,78.351,3.85939435]
[1770960335268,3.94684062,78.399,78.361,4.09409936]
[1770960335469,13.37081922,78.399,78.361,4.09409936]
[1770960335668,3.94684062,78.398,78.361,4.09409936]
[1770960337868,3.94684062,78.398,78.362,11.4947]
[1770960340273,3.94684062,78.398,78.362,15.62224818]
[1770960340467,11.74402517,78.417,78.324,101.86]
[1770960340468,3.94684062,78.409,78.378,4.12754818]
[1770960340673,3.94684062,78.409,78.38,3.57545049]
[1770960340872,3.94684062,78.409,78.378,4.12754818]
[1770960341074,3.94684062,78.409,78.377,11.4926]
[1770960341368,3.94684062,78.409,78.371,4.14460499]
[1770960341566,7.52229111,78.43,78.391,4.14460499]
[1770960341770,3.94684062,78.43,78.4,3.57545049]
[1770960341972,3.94684062,78.43,78.401,11.4891]
[1770960342174,3.57545049,78.44,78.402,4.14460499]
[1770960342370,3.94684062,78.444,78.402,4.14460499]
[1770960342569,3.57545049,78.44,78.402,4.14460499]
[1770960344875,3.94684062,78.444,78.41,3.57545049]
[1770960347074,3.57545049,78.44,78.4,3.57545049]
[1770960347274,3.94684062,78.439,78.4,3.57545049]
[1770960348372,3.94684062,78.439,78.395,11.4899]
[1770960348879,3.94684062,78.439,78.4,3.57545049]
[1770960350376,3.94684062,78.439,78.404,3.93335317]
[1770960351186,3.57545049,78.45,78.411,3.9775778]
[1770960352082,7.52229111,78.45,78.411,3.9775778]
[1770960352284,3.94684062,78.449,78.411,3.9775778]
[1770960354280,3.94684062,78.439,78.4,3.57545049]
[1770960354586,3.94684062,78.439,78.395,15.28742621]
[1770960355292,3.94684062,78.439,78.4,3.57545049]
[1770960356292,3.57545049,78.43,78.395,15.28742621]
[1770960357487,3.94684062,78.439,78.395,15.28742621]
[1770960358284,3.94684062,78.429,78.387,11.4912]
[1770960358490,3.57545049,78.42,78.387,11.4912]
[1770960358684,3.57545049,78.42,78.359,101.8]
[1770960358685,3.94684062,78.419,78.37,3.57545049]
[1770960358994,3.94684062,78.419,78.371,3.83848958]
[1770960359693,3.57545049,78.41,78.371,3.83848958]
[1770960359894,3.57545049,78.41,78.376,11.4927]
[1770960362201,3.94684062,78.419,78.376,11.4927]
[1770960363101,3.94684062,78.419,78.376,15.29833194]
[1770960365301,3.94684062,78.419,78.38,3.57545049]
[1770960368991,3.84722115,78.389,78.337,3.81734543]
[1770960369200,3.84722115,78.389,78.341,3.79233036]
[1770960369397,3.84722115,78.379,78.341,3.79233036]
[1770960370196,3.57545049,78.4,78.361,3.79233036]
[1770960370405,3.57545049,78.41,78.361,3.79233036]
[1770960370890,7.42267164,78.41,78.361,3.79233036]
[1770960371093,3.84722115,78.409,78.361,3.79233036]
[1770960371497,11.4882,78.408,78.37,3.57545049]
[1770960371699,499.90563357,78.418,78.381,3.8319049]
[1770960372002,3.57545049,78.41,78.37,7.40735539]
[1770960373001,3.57545049,78.41,78.371,3.8319049]
[1770960374804,212.54,78.429,78.324,23.0009]
[1770960374805,3.84722115,78.429,78.391,3.64842918]
[1770960375705,11.484,78.437,78.4,3.57545049]
[1770960376103,3.84722115,78.436,78.391,3.64842918]
[1770960376508,3.57545049,78.43,78.391,3.64842918]
[1770960378407,3.84722115,78.436,78.4,3.57545049]
[1770960378606,3.84722115,78.436,78.401,3.64502982]
[1770960379706,3.57545049,78.44,78.401,3.64502982]
[1770960379912,3.57545049,78.44,78.4,3.57545049]
[1770960379913,3.84722115,78.439,78.4,3.57545049]
[1770960380804,7.42267164,78.43,78.392,11.4904]
[1770960381005,3.84722115,78.429,78.392,11.4904]
[1770960381213,3.84722115,78.429,78.392,15.15676518]
[1770960381407,3.84722115,78.429,78.393,3.66636518]
[1770960382206,13.36379059,78.429,78.396,11.4898]
[1770960382711,9.51656944,78.429,78.397,3.66636518]
[1770960383307,15.77127316,78.457,78.344,368.26959174]
[1770960383308,3.84722115,78.409,78.351,4.13765795]
[1770960383511,3.57545049,78.39,78.351,4.13765795]
[1770960384014,3.84722115,78.389,78.351,4.13765795]
[1770960384714,3.84722115,78.389,78.352,11.4963]
[1770960387716,3.84722115,78.379,78.337,4.13765795]
[1770960388117,3.84722115,78.379,78.341,4.13765795]
[1770960391109,3.84722115,78.379,78.335,11.4988]
[1770960391312,3.84165594,78.369,78.334,190.51576231]
[1770960391917,3.57495198,78.36,78.334,190.51576231]
[1770960392111,3.57495198,78.36,78.329,3.90114715]
[1770960393319,3.84165594,78.359,78.326,11.5]
[1770960393510,3.84165594,78.349,78.304,3.90114715]
[1770960393817,3.84165594,78.349,78.31,3.57495198]
[1770960394318,3.84165594,78.349,78.31,7.71672105]
[1770960395217,3.84165594,78.349,78.311,4.14176907]
[1770960395520,7.69987544,78.36,78.313,4.14176907]
[1770960396822,3.57495198,78.35,78.313,4.14176907]
[1770960397118,7.69987544,78.36,78.313,4.14176907]
[1770960397821,7.69987544,78.36,78.32,3.57495198]
[1770960398331,7.69987544,78.36,78.313,4.14176907]
[1770960401622,7.69987544,78.36,78.314,11.5019]
[1770960401822,7.69987544,78.36,78.315,4.14176907]
[1770960402123,4.12492346,78.359,78.315,4.14176907]
[1770960403820,4.12492346,78.359,78.317,4.14176907]
[1770960404322,4.12492346,78.359,78.311,4.14176907]
[1770960404323,3.57495198,78.35,78.311,4.14176907]
[1770960404626,4.12492346,78.359,78.311,4.14176907]
[1770960405725,11.4957,78.357,78.311,15.64416907]
[1770960405930,11.4957,78.357,78.312,4.14176907]
[1770960406228,4.12492346,78.359,78.312,4.14176907]
[1770960407821,4.12492346,78.359,78.315,4.14176907]
[1770960408727,4.12492346,78.359,78.317,4.14176907]
[1770960409734,4.12492346,78.359,78.31,3.57495198]
[1770960409735,4.12492346,78.359,78.319,4.14176907]
[1770960410729,4.12492346,78.345,78.292,4.14176907]
[1770960411029,4.12492346,78.356,78.32,7.71672105]
[1770960411421,4.12492346,78.356,78.321,4.14176907]
[1770960412118,4.12492346,78.356,78.323,4.14176907]
[1770960412318,4.12492346,78.367,78.33,3.57495198]
[1770960412519,4.12492346,78.367,78.331,4.14176907]
[1770960413131,4.12492346,78.367,78.334,4.14176907]
[1770960415227,4.12492346,78.367,78.33,3.57495198]
[1770960415430,4.12492346,78.359,78.326,11.5002]
[1770960416226,4.12492346,78.349,78.316,11.5015]
[1770960416631,4.12492346,78.349,78.31,3.57495198]
[1770960417329,4.12492346,78.349,78.31,7.71672105]
[1770960420031,4.12492346,78.339,78.3,3.57495198]
[1770960420733,4.12492346,78.339,78.3,15.07895198]
[1770960421230,4.12492346,78.339,78.305,4.0601813]
[1770960421535,15.77127316,78.388,78.266,23.0177]
[1770960421536,3.57495198,78.35,78.311,4.0601813]
[1770960421735,3.87619689,78.349,78.3,3.57495198]
[1770960422031,140.24,78.373,78.253,194.06406758]
[1770960422032,3.57495198,78.32,78.286,4.0601813]
[1770960422540,3.87619689,78.319,78.273,4.0601813]
[1770960423029,7.45114887,78.31,78.273,4.0601813]
[1770960423226,3.87619689,78.309,78.273,4.0601813]
[1770960423534,3.87619689,78.309,78.263,4.0601813]
[1770960424835,3.87619689,78.309,78.264,15.5693813]
[1770960425136,3.87619689,78.309,78.271,4.0601813]
[1770960426638,7.45114887,78.29,78.253,194.06406758]
[1770960426843,3.87619689,78.289,78.25,3.57495198]
[1770960427337,3.87619689,78.288,78.248,4.0601813]
[1770960428138,3.87619689,78.286,78.248,4.0601813]
[1770960428337,7.45114887,78.28,78.24,3.57495198]
[1770960428533,3.87619689,78.269,78.236,4.0601813]
[1770960428739,3.57495198,78.28,78.241,4.0601813]
[1770960429833,3.57495198,78.27,78.241,4.0601813]
[1770960430035,7.45114887,78.28,78.24,3.57495198]
[1770960430241,7.45114887,78.28,78.241,4.0601813]
[1770960431140,11.5072,78.279,78.241,4.0601813]
[1770960431333,15.38339689,78.279,78.241,4.0601813]
[1770960431534,9.41941943,78.299,78.222,11.5154]
[1770960431535,3.87619689,78.269,78.222,11.5154]
[1770960431842,3.87619689,78.259,78.22,3.57495198]
[1770960432039,3.87619689,78.259,78.218,4.0601813]
[1770960432737,3.87619689,78.259,78.22,3.57495198]
[1770960433328,3.87619689,78.259,78.221,4.0601813]
[1770960433532,3.57495198,78.27,78.231,4.0601813]
[1770960433729,11.71044893,78.307,78.231,4.0601813]
[1770960433730,7.45114887,78.28,78.24,3.57495198]
[1770960435045,7.45114887,78.28,78.24,7.63513328]
[1770960436841,3.87619689,78.28,78.24,7.63513328]
[1770960437138,7.45114887,78.28,78.24,7.63513328]
[1770960437939,3.87619689,78.269,78.23,3.57495198]
[1770960438138,3.87619689,78.269,78.226,4.0601813]
[1770960439131,3.87619689,78.269,78.23,3.57495198]
[1770960439837,3.57495198,78.28,78.241,4.0601813]
[1770960442842,3.57495198,78.29,78.251,4.0601813]
[1770960444243,3.87619689,78.289,78.251,4.0601813]
[1770960444547,3.87619689,78.279,78.237,4.0601813]
[1770960445648,7.45114887,78.29,78.251,4.0601813]
[1770960446148,178.8284,78.354,78.261,4.0601813]
[1770960446149,3.57495198,78.3,78.261,4.0601813]
[1770960447350,11.5034,78.305,78.27,7.63513328]
[1770960447550,11.5034,78.305,78.27,4.0601813]
[1770960450446,3.58257893,78.31,78.27,4.0601813]
[1770960450651,3.58257893,78.31,78.27,7.64276023]
[1770960452858,3.98502481,78.309,78.27,19.15096023]
[1770960453356,3.98502481,78.299,78.27,11.5082]
[1770960453853,7.49055812,78.31,78.271,4.190051]
[1770960454440,3.90797919,78.309,78.271,4.190051]
[1770960455049,3.90797919,78.309,78.274,4.190051]
[1770960458358,3.58257893,78.3,78.274,4.190051]
[1770960461963,3.58257893,78.3,78.265,11.509]
[1770960462558,3.58257893,78.3,78.265,15.699051]
[1770960463258,3.90797919,78.299,78.265,11.509]
[1770960464364,3.58257893,78.3,78.267,11.5087]
[1770960464563,3.90797919,78.299,78.267,11.5087]
[1770960466660,3.90797919,78.299,78.268,4.190051]
[1770960467968,3.90797919,78.309,78.27,4.190051]
[1770960468863,3.90797919,78.309,78.274,11.5077]
[1770960469461,3.90797919,78.309,78.27,4.190051]
[1770960469663,3.58257893,78.3,78.27,4.190051]
[1770960474073,3.90797919,78.306,78.27,4.190051]
[1770960474667,3.90797919,78.306,78.272,15.698151]
[1770960475270,3.90797919,78.306,78.272,4.190051]
[1770960475974,3.90797919,78.311,78.272,4.190051]
[1770960476164,9.45070341,78.313,78.272,4.190051]
[1770960476370,3.58257893,78.31,78.272,4.190051]
[1770960476571,3.90797919,78.309,78.272,4.190051]
[1770960477769,3.90797919,78.309,78.274,11.5076]
[1770960478672,3.90797919,78.309,78.274,15.697651]
[1770960478974,3.90797919,78.309,78.275,4.190051]
[1770960479978,9.45070341,78.317,78.275,4.190051]
[1770960480284,9.45070341,78.316,78.275,4.190051]
[1770960480478,211.94,78.318,78.275,4.190051]
[1770960481579,7.40524835,78.32,78.275,4.190051]
[1770960481773,16.86914895,78.32,78.275,4.190051]
[1770960482273,3.58257893,78.31,78.275,4.190051]
[1770960483174,3.82266942,78.317,78.277,4.13890253]
[1770960483474,3.58257893,78.34,78.301,4.13890253]
[1770960484879,3.82266942,78.341,78.305,4.13890253]
[1770960485082,3.82266942,78.341,78.311,4.13890253]
[1770960485281,3.58257893,78.35,78.311,4.13890253]
[1770960485481,9.4641664,78.349,78.311,4.13890253]
[1770960485977,13.04674533,78.35,78.311,4.13890253]
[1770960486177,13.04674533,78.35,78.315,4.13890253]
[1770960486380,3.82266942,78.351,78.315,4.13890253]
[1770960489285,3.58257893,78.36,78.321,4.13890253]
[1770960489479,7.40524835,78.36,78.321,4.13890253]
[1770960489981,3.82266942,78.359,78.321,4.13890253]
[1770960490489,3.58257893,78.35,78.321,4.13890253]
[1770960491389,3.82266942,78.359,78.321,4.13890253]
[1770960492490,3.58257893,78.35,78.321,4.13890253]
[1770960494687,3.82266942,78.359,78.321,4.13890253]
[1770960494888,3.82266942,78.359,78.32,3.58257893]
[1770960494889,3.58257893,78.37,78.327,4.13890253]
[1770960495190,3.82266942,78.359,78.316,4.13890253]
[1770960495988,7.40524835,78.35,78.316,4.13890253]
[1770960496796,7.40524835,78.35,78.317,11.5014]
[1770960496989,3.82266942,78.349,78.317,11.5014]
[1770960497689,9.36513368,78.369,78.289,101.92]
[1770960497690,7.40524835,78.34,78.306,11.503]
[1770960500190,3.82266942,78.34,78.306,11.503]
[1770960501091,3.82266942,78.339,78.297,11.5043]
[1770960501290,9.36513368,78.361,78.294,4.13890253]
[1770960501291,3.82266942,78.329,78.294,4.13890253]
[1770960502896,3.82266942,78.329,78.295,11.5047]
[1770960505398,3.82266942,78.329,78.298,11.5042]
[1770960509096,3.82266942,78.329,78.298,15.64310253]
[1770960509304,3.82266942,78.329,78.299,4.13890253]
[1770960515703,3.82047115,78.319,78.286,11.506]
[1770960516109,3.82047115,78.319,78.279,3.98977009]
[1770960517216,3.82047115,78.319,78.281,3.98977009]
[1770960518011,3.57977539,78.33,78.291,3.98977009]
[1770960518704,3.82047115,78.329,78.291,3.98977009]
[1770960519102,185.82697769,78.351,78.261,101.92]
[1770960519103,3.82047115,78.319,78.286,11.5059]
[1770960524727,3.82047115,78.319,78.286,15.49567009]
[1770960526210,11.5024,78.311,78.286,3.98977009]
[1770960526414,3.82047115,78.309,78.271,3.98977009]
[1770960526807,3.82047115,78.319,78.28,3.57977539]
[1770960527003,3.82047115,78.319,78.281,3.98977009]
[1770960528312,3.82047115,78.329,78.291,3.98977009]
[1770960537424,3.82047115,78.328,78.291,3.98977009]
[1770960538525,3.82047115,78.327,78.291,3.98977009]
[1770960540233,3.82047115,78.327,78.286,11.5059]
[1770960540423,3.82047115,78.325,78.286,11.5059]
[1770960540726,3.57977539,78.33,78.286,11.5059]
[1770960540727,4.07809613,78.323,78.286,11.5059]
[1770960540926,4.07809613,78.321,78.286,11.5059]
[1770960541323,9.4115783,78.32,78.286,15.43219326]
[1770960541525,4.07809613,78.321,78.286,15.43219326]
[1770960541726,4.07809613,78.319,78.286,15.43219326]
[1770960542425,4.07809613,78.319,78.28,3.57977539]
[1770960542426,4.07809613,78.319,78.289,11.5055]
[1770960543226,4.07809613,78.319,78.289,15.43179326]
[1770960548132,4.07809613,78.319,78.29,3.92629326]
[1770960554339,4.07809613,78.328,78.29,3.92629326]
[1770960554540,4.07809613,78.326,78.29,3.92629326]
[1770960554744,9.41804381,78.325,78.29,3.92629326]
[1770960554943,9.41804381,78.324,78.29,3.92629326]
[1770960555144,9.41804381,78.323,78.29,3.92629326]
[1770960555344,9.41804381,78.322,78.29,3.92629326]
[1770960555646,9.41804381,78.321,78.29,3.92629326]
[1770960555942,4.07809613,78.326,78.29,3.92629326]
[1770960556146,4.07809613,78.324,78.29,3.92629326]
[1770960556339,4.07809613,78.322,78.29,3.92629326]
[1770960556538,13.49633587,78.321,78.29,3.92629326]
[1770960556845,4.07809613,78.321,78.29,3.92629326]
[1770960557244,9.42361347,78.32,78.29,3.92629326]
[1770960557443,4.07809613,78.321,78.29,3.92629326]
[1770960557746,4.07809613,78.319,78.29,3.92629326]
[1770960559052,9.42741052,78.318,78.29,3.92629326]
[1770960559351,9.42741052,78.317,78.29,3.92629326]
[1770960559651,4.07809613,78.315,78.283,3.92629326]
[1770960560049,4.07809613,78.329,78.286,3.92629326]
[1770960560250,4.07809613,78.327,78.286,3.92629326]
[1770960560451,4.07809613,78.325,78.286,3.92629326]
[1770960560644,9.43279119,78.324,78.286,3.92629326]
[1770960560843,9.43279119,78.323,78.286,3.92629326]
[1770960561046,9.43279119,78.322,78.286,3.92629326]
[1770960561247,9.43279119,78.321,78.286,3.92629326]
[1770960561445,9.43279119,78.32,78.286,3.92629326]
[1770960561645,9.43279119,78.319,78.286,3.92629326]
[1770960561954,4.07809613,78.325,78.288,3.92629326]
[1770960562250,9.43753874,78.324,78.288,3.92629326]
[1770960562450,9.43753874,78.323,78.288,3.92629326]
[1770960562650,9.43753874,78.322,78.288,3.92629326]
[1770960562951,9.43753874,78.321,78.288,3.92629326]
[1770960563147,9.43753874,78.32,78.288,3.92629326]
[1770960563455,9.43753874,78.319,78.288,3.92629326]
[1770960563642,9.43753874,78.318,78.288,3.92629326]
[1770960563842,4.07809613,78.325,78.288,3.92629326]
[1770960564042,9.43617356,78.324,78.288,3.92629326]
[1770960564253,9.43617356,78.323,78.288,3.92629326]
[1770960564452,9.43617356,78.322,78.288,3.92629326]
[1770960564749,9.43617356,78.321,78.288,3.92629326]
[1770960564950,9.43617356,78.32,78.288,3.92629326]
[1770960565152,4.07809613,78.334,78.301,3.92629326]
[1770960565454,4.07809613,78.334,78.268,23.8265399]
[1770960565455,9.4379037,78.333,78.311,3.92629326]
[1770960565753,4.07809613,78.344,78.311,3.92629326]
[1770960565953,9.43946148,78.343,78.311,3.92629326]
[1770960566148,9.43946148,78.342,78.317,3.92629326]
[1770960566353,4.07809613,78.354,78.321,3.92629326]
[1770960566650,4.07809613,78.352,78.321,3.92629326]
[1770960566842,4.07809613,78.349,78.316,11.5016]
[1770960567044,4.07809613,78.347,78.304,11.5032]
[1770960567253,4.07809613,78.345,78.304,15.42949326]
[1770960567555,4.07809613,78.343,78.305,3.92629326]
[1770960567753,3.57977539,78.34,78.305,3.92629326]
[1770960567956,4.07809613,78.338,78.305,3.92629326]
[1770960568253,4.07809613,78.336,78.305,3.92629326]
[1770960568557,4.07809613,78.334,78.305,3.92629326]
[1770960568755,4.07809613,78.332,78.305,3.92629326]
[1770960568958,9.43461274,78.331,78.305,3.92629326]
[1770960569252,4.07809613,78.331,78.305,3.92629326]
[1770960572157,4.07809613,78.331,78.295,15.7325492]
[1770960572553,4.07809613,78.331,78.296,4.2279492]
[1770960572749,4.08073982,78.329,78.286,15.7338492]
[1770960572956,4.08073982,78.327,78.286,15.7338492]
[1770960573259,4.08073982,78.325,78.286,15.7338492]
[1770960573450,4.08073982,78.323,78.286,15.7338492]
[1770960573759,4.08073982,78.321,78.286,15.7338492]
[1770960583252,3.57946432,78.32,78.286,15.7338492]
[1770960583455,3.98513399,78.319,78.287,3.88031873]
[1770960586866,3.98513399,78.317,78.287,3.88031873]
[1770960588256,3.98513399,78.315,78.28,3.57946432]
[1770960588460,9.41591685,78.316,78.28,3.57946432]
[1770960588461,3.98513399,78.313,78.28,3.57946432]
[1770960588863,3.98513399,78.313,78.282,11.5065]
[1770960589270,3.98513399,78.309,78.278,3.88031873]
[1770960592263,3.98513399,78.309,78.282,3.88031873]
[1770960592465,3.57946432,78.32,78.282,3.88031873]
[1770960592466,3.98513399,78.319,78.282,3.88031873]
[1770960592665,3.98513399,78.317,78.282,3.88031873]
[1770960592866,3.98513399,78.315,78.282,3.88031873]
[1770960593468,3.98513399,78.315,78.286,3.88031873]
[1770960593668,3.57946432,78.32,78.286,3.88031873]
[1770960593864,3.98513399,78.319,78.286,3.88031873]
[1770960597277,164.7,78.343,78.254,101.92]
[1770960597278,1.193e-05,78.34,78.31,3.57946432]
[1770960597485,5.31802997,78.368,78.291,23.88815414]
[1770960597785,5.31802997,78.359,78.32,3.57946432]
[1770960598870,5.42284364,78.358,78.32,3.57946432]
[1770960599082,3.57946432,78.35,78.31,3.57946432]
[1770960599982,9.00230796,78.35,78.31,3.57946432]
[1770960600172,5.42284364,78.349,78.298,11.5042]
[1770960600378,5.42284364,78.339,78.3,3.57946432]
[1770960600876,5.42284364,78.339,78.263,125.82815414]
[1770960601081,5.42284364,78.339,78.3,3.57946432]
[1770960604879,5.42284364,78.339,78.304,11.5033]
[1770960605087,5.41469901,78.354,78.32,3.57946432]
[1770960608677,3.57946432,78.35,78.314,11.5019]
[1770960608887,5.39067594,78.349,78.31,3.57946432]
[1770960611785,3.57946432,78.37,78.33,3.57946432]
[1770960611984,5.37578671,78.371,78.34,3.57946432]
[1770960612793,9.30090009,78.379,78.34,3.57946432]
[1770960612986,273.65442118,78.38,78.34,3.57946432]
[1770960614187,5.39100354,78.382,78.34,3.57946432]
[1770960614493,11.4924,78.38,78.34,3.57946432]
[1770960614693,5.39718563,78.379,78.34,3.57946432]
[1770960615691,5.39718563,78.387,78.35,3.57946432]
[1770960620697,5.39718563,78.387,78.352,11.4962]
[1770960620903,5.39347725,78.407,78.37,3.57946432]
[1770960621104,5.39347725,78.407,78.36,3.57946432]
[1770960621304,5.39347725,78.399,78.36,3.57946432]
[1770960627413,5.38986153,78.389,78.355,11.4959]
[1770960630806,5.38986153,78.389,78.36,3.57465768]
[1770960631815,5.41596975,78.399,78.36,3.57465768]
[1770960632011,5.41596975,78.41,78.38,3.57465768]
[1770960632214,3.57465768,78.42,78.38,3.57465768]
[1770960632514,5.41596975,78.423,78.39,3.57465768]
[1770960634211,5.41596975,78.423,78.381,11.4921]
[1770960635609,3.57465768,78.42,78.381,11.4921]
[1770960637610,3.57465768,78.42,78.339,101.86]
[1770960637611,3.57465768,78.43,78.39,3.57465768]
[1770960638415,5.42771895,78.435,78.4,3.57465768]
[1770960640819,3.57465768,78.43,78.4,3.57465768]
[1770960641008,3.57465768,78.43,78.393,11.4902]
[1770960642014,5.45283271,78.429,78.393,11.4902]
[1770960642216,3.57465768,78.42,78.382,11.4919]
[1770960643422,5.45283271,78.429,78.382,11.4919]
[1770960644221,5.45283271,78.429,78.39,3.57465768]
[1770960646811,5.47630599,78.439,78.4,3.57465768]
[1770960647012,210.11370355,78.516,78.42,3.57465768]
[1770960647013,5.47630599,78.452,78.42,3.57465768]
[1770960648211,5.47630599,78.452,78.421,11.4862]
[1770960650933,3.57465768,78.46,78.427,11.4852]
[1770960651122,5.48730345,78.463,78.43,3.57465768]
[1770960651318,47.52605136,78.5,78.43,3.57465768]
[1770960651319,5.48730345,78.474,78.43,3.57465768]
[1770960651523,5.48730345,78.474,78.44,3.57465768]
[1770960652224,5.48730345,78.474,78.385,38.36]
[1770960652225,5.48730345,78.485,78.45,3.57465768]
[1770960652528,5.48108194,78.498,78.46,3.57465768]
[1770960652915,5.48108194,78.498,78.45,3.57465768]
[1770960653828,5.48108194,78.489,78.45,3.57465768]
[1770960654331,5.48108194,78.489,78.453,11.4815]
[1770960660537,3.57465768,78.5,78.453,11.4815]
[1770960660538,8.96249886,78.5,78.453,11.4815]
[1770960660736,5.38784118,78.499,78.463,11.48]
[1770960661037,3.57465768,78.52,78.48,3.57465768]
[1770960661229,5.38784118,78.524,78.48,3.57465768]
[1770960661430,5.38784118,78.524,78.49,3.57465768]
[1770960663731,3.57465768,78.52,78.481,11.4774]
[1770960664035,5.41083593,78.519,78.481,11.4774]
[1770960664333,5.41083593,78.519,78.48,3.57465768]
[1770960664531,5.41083593,78.519,78.473,11.4786]
[1770960664936,5.3824213,78.509,78.473,11.4786]
[1770960668036,3.57465768,78.52,78.48,3.57465768]
[1770960668337,11.469,78.539,78.49,3.57465768]
[1770960668338,5.37961391,78.529,78.49,3.57465768]
[1770960668538,5.37961391,78.529,78.48,3.57465768]
[1770960669841,5.37961391,78.529,78.485,11.4768]
[1770960672233,5.37961391,78.529,78.49,3.57465768]
[1770960674341,8.96715329,78.52,78.485,11.4768]
[1770960675246,5.39249561,78.52,78.485,11.4768]
[1770960675443,8.96715329,78.52,78.485,11.4768]
[1770960678343,5.35709151,78.509,78.46,3.57465768]
[1770960678550,5.35709151,78.509,78.47,3.57465768]
[1770960679950,5.35709151,78.509,78.471,11.4788]
[1770960681749,5.35709151,78.509,78.48,3.57465768]
[1770960682554,5.35709151,78.509,78.477,11.4779]
[1770960687661,5.30229234,78.518,78.487,11.4765]
[1770960692868,5.30229234,78.518,78.476,11.4781]
[1770960694864,5.30229234,78.518,78.48,3.56245845]
[1770960696370,5.28269458,78.516,78.48,3.56245845]
[1770960696568,5.28269458,78.516,78.476,11.4781]
[1770960697772,5.28269458,78.516,78.48,3.56245845]
[1770960698373,5.26985262,78.514,78.48,3.56245845]
[1770960698569,3.56245845,78.52,78.435,101.7]
[1770960698570,5.26985262,78.499,78.465,11.4797]
[1770960698980,5.26985262,78.499,78.47,3.56245845]
[1770960702074,5.27774967,78.497,78.46,3.56245845]
[1770960702385,5.27774967,78.495,78.454,11.4814]
[1770960704074,17.06067325,78.515,78.47,3.56245845]
[1770960704279,5.28052151,78.528,78.49,3.56245845]
[1770960704484,14.605501,78.527,78.49,3.56245845]
[1770960704686,9.32801921,78.526,78.49,3.56245845]
[1770960704883,9.32801921,78.525,78.49,3.56245845]
[1770960705085,9.32801921,78.524,78.49,3.56245845]
[1770960705285,9.32801921,78.523,78.49,3.56245845]
[1770960705478,9.32801921,78.522,78.49,3.56245845]